[Event "European Womens-ch 2025"]
[Site "Rhodes"]
[Date "2025.04.11"]
[Round "11.29"]
[White "Dwilewicz, Katarzyna"]
[Black "Gaponenko, Inna"]
[Result "1-0"]
[Annotator "ChessBase"]
[ECO "B31"]
[WhiteElo "2203"]
[BlackElo "2349"]
[PlyCount "139"]
[EventDate "2025.03.29"]
[EventType "swiss"]
[EventCountry "GRE"]
[SourceTitle "playchess.com"]
[Source "ChessBase"]
[SourceQuality "1"]
[TimeControl "40/5400+30:1800+30"]

1. e4 {[%emt 0:00:04]} c5 {[%emt 0:00:03]} 2. Nf3 {[%emt 0:00:14]} Nc6 {[%emt 0:00:06]} 3. Bb5 {[%emt 0:00:19]} g6 {[%emt 0:00:08]} 4. O-O {[%emt 0:00:15]} Bg7 {[%emt 0:00:04]} 5. c3 {[%emt 0:00:18]} Nf6 {[%emt 0:00:17]} 6. Re1 {[%emt 0:00:13]} O-O {[%emt 0:00:16]} 7. d4 {[%emt 0:00:10]} d5 {[%emt 0:03:26]} 8. e5 {[%emt 1:32:57]} Ne4 {[%emt 0:00:05]} 9. Be3 {[%emt 0:00:00]} cxd4 {[%emt 0:10:14]} 10. cxd4 {[%emt 0:00:00]} Qb6 {[%emt 0:00:04]} 11. Bxc6 {[%emt 0:00:00]} bxc6 {[%emt 0:00:09]} 12. Qc1 {[%emt 0:00:00]} f6 {[%emt 0:05:41]} 13. Nc3 {[%emt 0:00:00]} Nxc3 {[%emt 0:01:16]} 14. Qxc3 {[%emt 0:00:00]} a5 {[%emt 0:16:10]} 15. Rac1 {[%emt 0:00:00]} Bg4 {[%emt 0:04:30]} 16. exf6 {[%emt 0:00:00]} exf6 {[%emt 0:00:53]} 17. Bf4 {[%emt 0:00:00]} Bd7 {[%emt 0:22:38]} 18. Bd6 {[%emt 0:00:00]} Rfe8 {[%emt 0:03:25]} 19. h4 {[%emt 0:00:00]} h5 {[%emt 0:12:20]} 20. Nd2 {[%emt 0:00:00]} Bh6 {[%emt 0:07:44]} 21. Rcd1 {[%emt 0:00:00]} a4 {[%emt 0:07:16]} 22. Nf1 {[%emt 0:00:00]} Kf7 {[%emt 0:00:22]} 23. Ng3 {[%emt 0:00:00]} Qb5 {[%emt 0:02:21]} 24. b3 {[%emt 0:00:00]} axb3 {[%emt 0:00:04]} 25. axb3 {[%emt 0:00:00]} Re6 {[%emt 0:01:43]} 26. Bc5 {[%emt 0:00:00]} Rb8 {[%emt 0:00:57]} 27. b4 {[%emt 0:09:30]} Ra8 {[%emt 0:00:44]} 28. Ra1 {[%emt 0:00:00]} Qb7 {[%emt 0:00:57]} 29. Rxa8 Qxa8 {[%emt 0:00:01]} 30. Ra1 {[%emt 0:00:00]} Qe8 {[%emt 0:00:01]} 31. Kh2 {[%emt 0:00:00]} Bf4 {[%emt 0:00:42]} 32. Qf3 {[%emt 0:00:00]} Re4 {[%emt 0:00:12]} 33. Ra7 {[%emt 0:00:00]} Bb8 {[%emt 0:00:36]} 34. Ra1 {[%emt 0:00:00]} Rxh4+ {[%emt 0:01:16]} 35. Kg1 {[%emt 0:00:00]} Rg4 {[%emt 0:00:05]} 36. b5 {[%emt 0:00:00]} Kg7 {[%emt 0:01:04]} 37. b6 {[%emt 0:00:30]} h4 {[%emt 0:00:18]} 38. Nf1 {[%emt 0:00:35]} Re4 {[%emt 0:00:47]} 39. b7 {[%emt 0:00:30]} Qd8 {[%emt 0:00:30]} 40. Ba7 {[%emt 0:00:00]} Qc7 {[%emt 0:00:30]} 41. Bxb8 {[%emt 0:04:33]} Qxb8 {[%emt 0:30:30]} 42. Qb3 {[%emt 0:00:30]} Bc8 {[%emt 0:00:30]} 43. bxc8=Q {[%emt 0:00:30]} Qxc8 {[%emt 0:00:00]} 44. Ra7+ {[%emt 0:06:08]} Kh6 {[%emt 0:00:00]} 45. Qf3 {[%emt 0:05:10]} Qe6 46. Qd3 {[%emt 0:21:04]} Re1 {[%emt 0:00:00]} 47. Qd2+ {[%emt 0:00:00]} g5 {[%emt 0:00:00]} 48. Ra3 {[%emt 0:00:00]} Rb1 {[%emt 0:00:00]} 49. Re3 {[%emt 0:00:00]} Qg4 {[%emt 0:00:00]} 50. Rf3 {[%emt 0:00:00]} Kg7 {[%emt 0:00:00]} 51. Qc2 {[%emt 0:00:00]} Qe4 {[%emt 0:00:00]} 52. Qxc6 Qxd4 {[%emt 0:02:50]} 53. Qc7+ {[%emt 0:00:03]} Kg6 {[%emt 0:02:06]} 54. Qc2+ {[%emt 0:00:13]} Qe4 {[%emt 0:00:02]} 55. Qc6 {[%emt 0:01:33]} Qd4 {[%emt 0:00:48]} 56. Qe8+ {[%emt 0:00:54]} Kh6 {[%emt 0:00:34]} 57. Qh8+ {[%emt 0:00:50]} Kg6 {[%emt 0:00:02]} 58. Qe8+ {[%emt 0:00:08]} Kh6 {[%emt 0:00:01]} 59. Qe2 {[%emt 0:01:38]} g4 {[%emt 0:02:05]} 60. Rd3 {[%emt 0:00:01]} Qe4 {[%emt 0:00:09]} 61. Qd2+ {[%emt 0:00:41]} Kg6 {[%emt 0:00:30]} 62. Rd4 {[%emt 0:00:18]} Qf5 {[%emt 0:00:21]} 63. Rxd5 {[%emt 0:00:11]} Qe4 {[%emt 0:00:51]} 64. Rd4 {[%emt 0:00:10]} Qf5 {[%emt 0:00:06]} 65. Qe2 {[%emt 0:01:21]} Kg5 {[%emt 0:00:52]} 66. Rd8 {[%emt 0:00:24]} Kh6 {[%emt 0:00:44]} 67. Qe3+ {[%emt 0:01:06]} Kg7 {[%emt 0:00:29]} 68. Qe7+ {[%emt 0:00:33]} Kh6 {[%emt 0:00:23]} 69. Rh8+ {[%emt 0:00:25]} Kg5 {[%emt 0:00:29]} 70. Rg8+ {[%emt 0:00:12]} 1-0

[Event "European Womens-ch 2025"]
[Site "Rhodes"]
[Date "2025.04.11"]
[Round "11.30"]
[White "Mgeladze, Kesaria"]
[Black "Kochavi, Dana"]
[Result "0-1"]
[Annotator "ChessBase"]
[ECO "B33"]
[WhiteElo "2200"]
[BlackElo "2301"]
[PlyCount "120"]
[EventDate "2025.03.29"]
[EventType "swiss"]
[EventCountry "GRE"]
[SourceTitle "playchess.com"]
[Source "ChessBase"]
[SourceQuality "1"]
[TimeControl "40/5400+30:1800+30"]

1. e4 {[%emt 0:00:02]} c5 {[%emt 0:01:04]} 2. Nf3 {[%emt 0:00:07]} Nc6 {[%emt 0:00:05]} 3. d4 {[%emt 0:00:06]} cxd4 {[%emt 0:00:02]} 4. Nxd4 {[%emt 0:00:08]} Nf6 {[%emt 0:00:03]} 5. Nc3 {[%emt 0:00:08]} e5 {[%emt 0:00:01]} 6. Ndb5 {[%emt 0:00:07]} d6 {[%emt 0:00:08]} 7. Nd5 {[%emt 0:00:04]} Nxd5 {[%emt 0:00:04]} 8. exd5 {[%emt 0:00:06]} Nb8 {[%emt 0:00:03]} 9. a4 {[%emt 0:00:06]} Be7 {[%emt 0:00:03]} 10. Be2 {[%emt 0:00:07]} O-O {[%emt 0:00:05]} 11. O-O {[%emt 0:00:06]} f5 {[%emt 0:00:32]} 12. f4 {[%emt 0:00:06]} Nd7 {[%emt 0:00:05]} 13. Kh1 {[%emt 0:00:06]} a6 {[%emt 0:00:57]} 14. Na3 {[%emt 0:00:07]} exf4 {[%emt 0:00:10]} 15. Bxf4 {[%emt 0:00:07]} Ne5 {[%emt 0:00:03]} 16. Bxe5 {[%emt 0:00:26]} dxe5 {[%emt 0:00:11]} 17. Nc4 {[%emt 0:00:05]} Bf6 {[%emt 0:00:42]} 18. a5 {[%emt 0:00:24]} g6 {[%emt 0:09:13]} 19. d6 {[%emt 0:12:06]} Be6 {[%emt 0:01:36]} 20. Nb6 {[%emt 0:00:05]} Rb8 {[%emt 0:00:04]} 21. Bc4 {[%emt 0:01:56]} Qe8 {[%emt 0:05:32]} 22. Qd3 {[%emt 0:30:52]} e4 {[%emt 0:05:21]} 23. Qb3 {[%emt 0:00:53]} Bxc4 {[%emt 0:00:05]} 24. Qxc4+ {[%emt 0:00:13]} Qf7 {[%emt 0:00:22]} 25. Qc5 {[%emt 0:06:46]} Qe6 {[%emt 0:05:19]} 26. Rad1 {[%emt 0:13:38]} Rbd8 {[%emt 0:11:13]} 27. Qc7 {[%emt 0:15:02]} Bxb2 {[%emt 0:18:14]} 28. Qxb7 {[%emt 0:09:41]} e3 {[%emt 0:14:15]} 29. Rfe1 {[%emt 0:00:57]} Bc3 {[%emt 0:00:31]} 30. Re2 {[%emt 0:01:13]} Rxd6 {[%emt 0:01:34]} 31. Rxd6 {[%emt 0:02:19]} Qxd6 {[%emt 0:00:05]} 32. Qd5+ {[%emt 0:00:28]} Qxd5 {[%emt 0:00:05]} 33. Nxd5 {[%emt 0:00:03]} Bd2 {[%emt 0:07:13]} 34. Nxe3 {[%emt 0:01:11]} Rd8 {[%emt 0:00:33]} 35. Kg1 {[%emt 0:02:33]} Bxa5 {[%emt 0:00:06]} 36. Nc4 {[%emt 0:00:19]} Bb4 {[%emt 0:01:45]} 37. Kf2 {[%emt 0:02:41]} Kf7 {[%emt 0:00:52]} 38. Kf3 {[%emt 0:00:47]} Kf6 {[%emt 0:04:02]} 39. Re3 {[%emt 0:01:14]} Rc8 {[%emt 0:01:24]} 40. Nb6 {[%emt 0:00:00]} Rd8 {[%emt 0:00:00]} 41. Nc4 {[%emt 0:01:54]} g5 {[%emt 0:07:06]} 42. Rb3 {[%emt 0:04:42]} Bc5 {[%emt 0:00:34]} 43. Ke2 {[%emt 0:10:00]} Rd4 {[%emt 0:02:41]} 44. Nd2 {[%emt 0:00:27]} Rg4 {[%emt 0:00:52]} 45. g3 {[%emt 0:00:15]} Rb4 {[%emt 0:02:57]} 46. Rc3 {[%emt 0:01:34]} Rb5 {[%emt 0:02:37]} 47. g4 {[%emt 0:01:39]} a5 {[%emt 0:01:33]} 48. Kd3 {[%emt 0:06:03]} Bd6 {[%emt 0:03:39]} 49. gxf5 {[%emt 0:03:33]} Rd5+ {[%emt 0:00:06]} 50. Ke2 {[%emt 0:00:07]} Rxd2+ {[%emt 0:01:54]} 51. Kxd2 {[%emt 0:00:05]} Bb4 {[%emt 0:00:05]} 52. Kd3 {[%emt 0:00:02]} Bxc3 {[%emt 0:00:05]} 53. Kxc3 {[%emt 0:00:03]} h5 {[%emt 0:00:30]} 54. Kb3 {[%emt 0:01:08]} g4 {[%emt 0:00:23]} 55. c4 {[%emt 0:00:12]} Kxf5 {[%emt 0:00:04]} 56. Ka4 {[%emt 0:00:57]} h4 {[%emt 0:00:20]} 57. c5 {[%emt 0:00:30]} Ke6 {[%emt 0:00:22]} 58. Kxa5 {[%emt 0:00:11]} g3 {[%emt 0:00:19]} 59. hxg3 {[%emt 0:00:15]} hxg3 {[%emt 0:00:07]} 60. c6 {[%emt 0:00:03]} g2 {[%emt 0:00:13]} 0-1

[Event "European Womens-ch 2025"]
[Site "Rhodes"]
[Date "2025.04.11"]
[Round "11.31"]
[White "Heinemann, Josefine"]
[Black "Pavlidou, Ekaterini"]
[Result "0-1"]
[Annotator "ChessBase"]
[ECO "B30"]
[WhiteElo "2297"]
[BlackElo "2160"]
[PlyCount "176"]
[EventDate "2025.03.29"]
[EventType "swiss"]
[EventCountry "GRE"]
[SourceTitle "playchess.com"]
[Source "ChessBase"]
[SourceQuality "1"]
[TimeControl "40/5400+30:1800+30"]

1. e4 {[%emt 0:00:03]} c5 {[%emt 0:02:53]} 2. Nf3 {[%emt 0:00:33]} Nc6 {[%emt 0:00:19]} 3. Bb5 {[%emt 0:00:06]} Nf6 {[%emt 0:00:32]} 4. Nc3 {[%emt 0:02:05]} g6 {[%emt 0:01:15]} 5. e5 {[%emt 0:06:20]} Nh5 {[%emt 0:03:29]} 6. O-O {[%emt 0:00:54]} Bg7 {[%emt 0:00:09]} 7. Re1 {[%emt 0:02:05]} Nd4 {[%emt 0:01:57]} 8. Bc4 {[%emt 0:03:50]} O-O {[%emt 0:07:29]} 9. d3 {[%emt 0:05:16]} d6 {[%emt 0:02:08]} 10. exd6 {[%emt 0:01:06]} Qxd6 {[%emt 0:01:39]} 11. Ne4 {[%emt 0:02:02]} Qc7 {[%emt 0:03:08]} 12. c3 {[%emt 0:02:06]} Ne6 {[%emt 0:04:14]} 13. Neg5 {[%emt 0:05:28]} Nxg5 {[%emt 0:03:04]} 14. Bxg5 {[%emt 0:00:06]} e6 {[%emt 0:01:55]} 15. Qd2 {[%emt 0:03:25]} Bd7 {[%emt 0:06:12]} 16. Bh6 {[%emt 0:01:58]} b5 {[%emt 0:05:45]} 17. Bxg7 {[%emt 0:02:33]} Kxg7 {[%emt 0:01:36]} 18. Bb3 {[%emt 0:00:11]} Rad8 {[%emt 0:18:36]} 19. Ne5 {[%emt 0:07:17]} Bc8 {[%emt 0:03:05]} 20. Bd1 {[%emt 0:03:30]} f6 {[%emt 0:02:49]} 21. Bxh5 {[%emt 0:00:44]} gxh5 {[%emt 0:07:03]} 22. Nf3 {[%emt 0:00:53]} c4 {[%emt 0:07:21]} 23. d4 {[%emt 0:01:25]} Qc6 {[%emt 0:00:41]} 24. Qe3 {[%emt 0:04:54]} Rd5 {[%emt 0:03:34]} 25. h4 {[%emt 0:00:07]} Rg8 {[%emt 0:01:50]} 26. Nd2 {[%emt 0:04:09]} Kf7 {[%emt 0:05:46]} 27. Ne4 {[%emt 0:02:39]} Rf5 {[%emt 0:01:28]} 28. f3 {[%emt 0:01:27]} Bb7 {[%emt 0:02:49]} 29. Re2 {[%emt 0:02:57]} Qd5 {[%emt 0:01:42]} 30. Rae1 {[%emt 0:00:56]} Bc8 {[%emt 0:00:15]} 31. Kf2 {[%emt 0:00:49]} Qc6 {[%emt 0:00:33]} 32. Ng3 {[%emt 0:01:01]} Rd5 {[%emt 0:00:35]} 33. Qh6 {[%emt 0:01:11]} Rg6 {[%emt 0:00:10]} 34. Qxh7+ {[%emt 0:00:07]} Rg7 {[%emt 0:00:06]} 35. Qh6 {[%emt 0:00:09]} Rg6 {[%emt 0:00:39]} 36. Qf4 {[%emt 0:00:40]} Bd7 {[%emt 0:01:12]} 37. Ne4 {[%emt 0:01:08]} Kg7 {[%emt 0:00:22]} 38. Qb8 {[%emt 0:05:45]} a5 {[%emt 0:00:17]} 39. Nc5 {[%emt 0:00:43]} e5 {[%emt 0:00:49]} 40. Nxd7 {[%emt 0:00:00]} Rxd7 {[%emt 0:00:00]} 41. dxe5 {[%emt 0:00:38]} Kh7 {[%emt 0:05:41]} 42. exf6 {[%emt 0:05:07]} Qxf6 {[%emt 0:00:41]} 43. g3 {[%emt 0:00:05]} Rf7 {[%emt 0:10:59]} 44. Re3 {[%emt 0:01:57]} Qf5 {[%emt 0:05:39]} 45. Qe5 {[%emt 0:02:48]} Qh3 {[%emt 0:02:39]} 46. Qxh5+ {[%emt 0:00:04]} Kg7 {[%emt 0:00:04]} 47. Qe5+ {[%emt 0:01:05]} Rgf6 {[%emt 0:01:20]} 48. Rg1 {[%emt 0:01:02]} Kh7 {[%emt 0:01:42]} 49. f4 {[%emt 0:03:06]} Qh2+ {[%emt 0:00:44]} 50. Rg2 {[%emt 0:00:02]} Rxf4+ {[%emt 0:02:22]} 51. gxf4 {[%emt 0:00:24]} Rxf4+ {[%emt 0:00:15]} 52. Qxf4 {[%emt 0:04:03]} Qxf4+ {[%emt 0:00:02]} 53. Rf3 {[%emt 0:00:07]} Qd2+ {[%emt 0:00:12]} 54. Kg1 {[%emt 0:01:36]} Qe1+ {[%emt 0:00:08]} 55. Kh2 {[%emt 0:00:09]} Qe5+ {[%emt 0:00:10]} 56. Rfg3 {[%emt 0:00:10]} b4 {[%emt 0:01:02]} 57. h5 {[%emt 0:02:24]} bxc3 {[%emt 0:00:23]} 58. bxc3 {[%emt 0:00:03]} Kh6 {[%emt 0:01:26]} 59. Rd2 {[%emt 0:02:07]} a4 {[%emt 0:00:59]} 60. Rd4 {[%emt 0:00:53]} Qe2+ {[%emt 0:01:06]} 61. Kh3 {[%emt 0:01:00]} Qe6+ {[%emt 0:00:40]} 62. Kh4 {[%emt 0:00:58]} Qf6+ {[%emt 0:00:54]} 63. Kg4 {[%emt 0:00:25]} Qg5+ {[%emt 0:02:26]} 64. Kf3 {[%emt 0:00:07]} Qf5+ {[%emt 0:00:11]} 65. Kg2 {[%emt 0:02:21]} Qc2+ {[%emt 0:00:05]} 66. Kh3 {[%emt 0:00:23]} Qf5+ {[%emt 0:00:13]} 67. Kh2 {[%emt 0:00:11]} Qe5 {[%emt 0:00:43]} 68. Rdg4 {[%emt 0:01:37]} Qe2+ {[%emt 0:00:22]} 69. Rg2 {[%emt 0:00:33]} Qe5+ {[%emt 0:00:06]} 70. R4g3 {[%emt 0:01:58]} a3 {[%emt 0:01:47]} 71. Rf2 {[%emt 0:01:31]} Qd6 {[%emt 0:00:29]} 72. Re2 {[%emt 0:00:44]} Qf4 {[%emt 0:00:59]} 73. Kg2 {[%emt 0:00:06]} Qb8 {[%emt 0:00:25]} 74. Re6+ {[%emt 0:01:10]} Kxh5 {[%emt 0:00:27]} 75. Re7 {[%emt 0:02:55]} Qb2+ {[%emt 0:00:09]} 76. Kh3 {[%emt 0:00:25]} Qb1 {[%emt 0:00:45]} 77. Kh2 {[%emt 0:04:30]} Qxa2+ {[%emt 0:00:39]} 78. Rg2 {[%emt 0:00:04]} Qb1 {[%emt 0:00:06]} 79. Re8 {[%emt 0:01:33]} Qh7 {[%emt 0:00:06]} 80. Re3 {[%emt 0:00:24]} Qc7+ {[%emt 0:00:10]} 81. Kh1 {[%emt 0:00:40]} Qd7 {[%emt 0:00:29]} 82. Re5+ {[%emt 0:09:51]} Kh6 {[%emt 0:00:52]} 83. Re1 {[%emt 0:04:55]} Qd5 {[%emt 0:01:02]} 84. Re3 {[%emt 0:01:42]} Qf5 {[%emt 0:00:39]} 85. Reg3 {[%emt 0:04:45]} Qb1+ {[%emt 0:00:22]} 86. Kh2 {[%emt 0:00:17]} Qb8 {[%emt 0:00:05]} 87. Kg1 {[%emt 0:01:36]} Qxg3 {[%emt 0:01:01]} 88. Rxg3 {[%emt 0:00:03]} a2 {[%emt 0:00:07]} 0-1

[Event "European Womens-ch 2025"]
[Site "Rhodes"]
[Date "2025.04.11"]
[Round "11.32"]
[White "Allahverdiyeva, Ayan"]
[Black "Chelushkina, Irina"]
[Result "1-0"]
[Annotator "ChessBase"]
[ECO "C02"]
[WhiteElo "2266"]
[BlackElo "2134"]
[PlyCount "105"]
[EventDate "2025.03.29"]
[EventType "swiss"]
[EventCountry "GRE"]
[SourceTitle "playchess.com"]
[Source "ChessBase"]
[SourceQuality "1"]
[TimeControl "40/5400+30:1800+30"]

1. e4 {[%emt 0:00:12]} e6 {[%emt 0:00:14]} 2. d4 {[%emt 0:00:04]} d5 {[%emt 0:00:02]} 3. e5 {[%emt 0:00:12]} c5 {[%emt 0:00:18]} 4. c3 {[%emt 0:00:03]} Nc6 {[%emt 0:00:03]} 5. Nf3 {[%emt 0:00:04]} Bd7 {[%emt 0:00:10]} 6. Be2 {[%emt 0:00:05]} f6 {[%emt 0:00:04]} 7. O-O {[%emt 0:02:14]} fxe5 {[%emt 0:00:06]} 8. Nxe5 {[%emt 0:02:31]} Nxe5 {[%emt 0:00:16]} 9. dxe5 {[%emt 0:00:02]} Qc7 {[%emt 0:00:12]} 10. Re1 {[%emt 0:04:16]} Ne7 {[%emt 0:00:39]} 11. Na3 {[%emt 0:05:28]} a6 {[%emt 0:00:06]} 12. Bh5+ {[%emt 0:02:00]} g6 {[%emt 0:03:52]} 13. Bg5 {[%emt 0:03:06]} Bg7 {[%emt 0:00:37]} 14. Bf6 {[%emt 0:02:17]} Nf5 {[%emt 0:01:53]} 15. Bxg7 {[%emt 0:04:46]} Nxg7 {[%emt 0:00:03]} 16. Bf3 {[%emt 0:01:45]} O-O {[%emt 0:00:34]} 17. Nc2 {[%emt 0:00:41]} Rf5 {[%emt 0:02:01]} 18. Ne3 {[%emt 0:01:57]} Rxe5 {[%emt 0:01:29]} 19. Ng4 {[%emt 0:03:09]} Rxe1+ {[%emt 0:03:38]} 20. Qxe1 {[%emt 0:02:16]} Rf8 {[%emt 0:00:13]} 21. Qe2 {[%emt 0:02:31]} Qf4 {[%emt 0:03:52]} 22. Re1 {[%emt 0:01:56]} Bc8 {[%emt 0:08:34]} 23. Ne5 {[%emt 0:00:44]} Qa4 {[%emt 0:00:51]} 24. a3 {[%emt 0:02:46]} Qa5 {[%emt 0:06:10]} 25. h4 {[%emt 0:01:13]} Qd8 {[%emt 0:00:39]} 26. h5 {[%emt 0:02:16]} gxh5 {[%emt 0:00:42]} 27. Bxh5 {[%emt 0:01:00]} Qg5 {[%emt 0:04:33]} 28. Bf3 {[%emt 0:01:25]} Rd8 {[%emt 0:03:59]} 29. g3 {[%emt 0:04:52]} Bd7 {[%emt 0:01:10]} 30. Nxd7 {[%emt 0:06:58]} Rxd7 {[%emt 0:00:07]} 31. c4 {[%emt 0:00:07]} dxc4 {[%emt 0:07:42]} 32. Qxc4 {[%emt 0:00:58]} b5 {[%emt 0:01:31]} 33. Qe4 {[%emt 0:08:03]} Qf6 {[%emt 0:11:54]} 34. Kg2 {[%emt 0:04:13]} Rf7 {[%emt 0:04:55]} 35. Re2 {[%emt 0:03:06]} h5 {[%emt 0:07:44]} 36. Qe3 {[%emt 0:08:46]} c4 {[%emt 0:06:35]} 37. Qe4 {[%emt 0:02:49]} Rf8 {[%emt 0:04:57]} 38. Rd2 {[%emt 0:03:38]} a5 {[%emt 0:08:16]} 39. Bd1 {[%emt 0:02:12]} Qf5 {[%emt 0:05:49]} 40. Qe2 {[%emt 0:00:00]} Qc5 {[%emt 0:00:00]} 41. Bc2 {[%emt 0:01:54]} Qc6+ {[%emt 0:06:02]} 42. Be4 {[%emt 0:01:20]} Qc7 {[%emt 0:01:00]} 43. Qe3 {[%emt 0:00:25]} Rd8 {[%emt 0:03:28]} 44. Re2 {[%emt 0:01:36]} Kf8 {[%emt 0:07:21]} 45. Qh6 {[%emt 0:03:27]} Qe5 {[%emt 0:01:07]} 46. f4 {[%emt 0:02:17]} Qd4 {[%emt 0:00:22]} 47. f5 {[%emt 0:00:23]} Ke7 {[%emt 0:00:47]} 48. Bf3 {[%emt 0:02:17]} Rf8 {[%emt 0:04:02]} 49. fxe6 {[%emt 0:02:03]} Qf6 {[%emt 0:05:56]} 50. Qe3 {[%emt 0:01:31]} Qf5 {[%emt 0:03:09]} 51. Qa7+ {[%emt 0:00:38]} Kf6 {[%emt 0:00:01]} 52. Qd4+ {[%emt 0:00:20]} Ke7 {[%emt 0:00:26]} 53. Qxg7+ {[%emt 0:00:06]} 1-0

[Event "European Womens-ch 2025"]
[Site "Rhodes"]
[Date "2025.04.11"]
[Round "11.33"]
[White "Zaksaite, Salomeja"]
[Black "Wikar, Martyna"]
[Result "0-1"]
[Annotator "ChessBase"]
[ECO "E14"]
[WhiteElo "2137"]
[BlackElo "2239"]
[PlyCount "62"]
[EventDate "2025.03.29"]
[EventType "swiss"]
[EventCountry "GRE"]
[SourceTitle "playchess.com"]
[Source "ChessBase"]
[SourceQuality "1"]
[TimeControl "40/5400+30:1800+30"]

1. d4 {[%emt 0:00:21]} Nf6 {[%emt 0:00:10]} 2. Nf3 {[%emt 0:00:34]} e6 {[%emt 0:00:50]} 3. e3 {[%emt 0:00:47]} b6 {[%emt 0:02:06]} 4. Bd3 {[%emt 0:01:29]} Bb7 {[%emt 0:00:49]} 5. b3 {[%emt 0:01:16]} c5 {[%emt 0:09:23]} 6. O-O {[%emt 0:01:21]} Be7 {[%emt 0:00:19]} 7. Bb2 {[%emt 0:00:06]} O-O {[%emt 0:00:17]} 8. c4 {[%emt 0:01:25]} d6 {[%emt 0:02:10]} 9. Nc3 {[%emt 0:01:32]} Nbd7 {[%emt 0:03:01]} 10. Re1 {[%emt 0:01:39]} e5 {[%emt 0:03:38]} 11. dxe5 {[%emt 0:06:38]} Nxe5 {[%emt 1:13:17]} 12. Nxe5 {[%emt 0:08:58]} dxe5 {[%emt 0:00:00]} 13. Qc2 {[%emt 0:00:14]} Bd6 {[%emt 0:00:00]} 14. e4 {[%emt 0:13:17]} Nh5 {[%emt 0:00:00]} 15. Nd5 {[%emt 0:00:30]} g6 {[%emt 0:00:00]} 16. Re3 {[%emt 0:00:30]} Bxd5 {[%emt 0:00:00]} 17. exd5 {[%emt 0:00:30]} Qc7 {[%emt 0:00:00]} 18. Rae1 {[%emt 0:00:30]} Rae8 {[%emt 0:00:00]} 19. Be2 {[%emt 0:00:30]} Ng7 {[%emt 0:00:00]} 20. Rh3 {[%emt 0:22:59]} Nf5 {[%emt 0:00:00]} 21. Qd2 {[%emt 0:10:47]} Nd4 {[%emt 0:00:00]} 22. Bd1 {[%emt 0:01:21]} f5 {[%emt 0:00:00]} 23. Kh1 {[%emt 0:01:36]} Qg7 {[%emt 0:00:00]} 24. Rhe3 {[%emt 0:05:55]} Re7 {[%emt 0:00:00]} 25. f4 {[%emt 0:03:31]} Rfe8 {[%emt 0:00:00]} 26. fxe5 {[%emt 0:00:12]} Rxe5 {[%emt 0:00:00]} 27. Bxd4 {[%emt 0:01:45]} cxd4 {[%emt 0:00:00]} 28. Rxe5 {[%emt 0:00:14]} Rxe5 {[%emt 0:00:00]} 29. Bf3 {[%emt 0:02:53]} Qh6 {[%emt 0:00:00]} 30. Qc1 {[%emt 0:10:48]} Rxe1+ {[%emt 0:00:00]} 31. Qxe1 {[%emt 0:00:03]} Qxh2# {[%emt 0:00:00]} 0-1

[Event "European Womens-ch 2025"]
[Site "Rhodes"]
[Date "2025.04.11"]
[Round "11.34"]
[White "Gevorgyan, Maria"]
[Black "Donghvani, Nia"]
[Result "0-1"]
[Annotator "ChessBase"]
[ECO "B45"]
[WhiteElo "2234"]
[BlackElo "2025"]
[PlyCount "90"]
[EventDate "2025.03.29"]
[EventType "swiss"]
[EventCountry "GRE"]
[SourceTitle "playchess.com"]
[Source "ChessBase"]
[SourceQuality "1"]
[TimeControl "40/5400+30:1800+30"]

1. e4 {[%emt 0:00:03]} c5 {[%emt 0:00:03]} 2. Nf3 {[%emt 0:00:07]} e6 {[%emt 0:00:53]} 3. d4 {[%emt 0:00:07]} cxd4 {[%emt 0:00:04]} 4. Nxd4 {[%emt 0:00:05]} Nf6 {[%emt 0:00:05]} 5. Nc3 {[%emt 0:00:11]} Nc6 {[%emt 0:00:03]} 6. Nxc6 {[%emt 0:00:07]} bxc6 {[%emt 0:00:05]} 7. e5 {[%emt 0:00:05]} Nd5 {[%emt 0:00:03]} 8. Ne4 {[%emt 0:00:06]} Qc7 {[%emt 0:00:04]} 9. f4 {[%emt 0:00:08]} Qb6 {[%emt 0:00:02]} 10. c4 {[%emt 0:00:20]} Bb4+ {[%emt 0:00:11]} 11. Ke2 {[%emt 0:00:15]} f5 {[%emt 0:01:14]} 12. exf6 {[%emt 0:00:13]} Nxf6 {[%emt 0:00:04]} 13. Nd6+ {[%emt 0:01:13]} Bxd6 {[%emt 0:00:58]} 14. Qxd6 {[%emt 0:00:06]} Ba6 {[%emt 0:31:02]} 15. Kf3 {[%emt 0:10:37]} c5 {[%emt 0:00:12]} 16. Qxb6 {[%emt 0:03:28]} axb6 {[%emt 0:00:02]} 17. Bd3 {[%emt 0:00:40]} O-O {[%emt 0:05:32]} 18. Re1 {[%emt 0:00:24]} Rae8 {[%emt 0:00:26]} 19. b3 {[%emt 0:04:51]} d5 {[%emt 0:05:20]} 20. Bb2 {[%emt 0:12:12]} d4 {[%emt 0:09:01]} 21. a4 {[%emt 0:02:16]} Bb7+ {[%emt 0:15:23]} 22. Kf2 {[%emt 0:00:08]} Nh5 {[%emt 0:01:53]} 23. g3 {[%emt 0:00:58]} e5 {[%emt 0:00:37]} 24. a5 {[%emt 0:03:24]} exf4 {[%emt 0:07:23]} 25. g4 {[%emt 0:00:06]} Nf6 {[%emt 0:00:20]} 26. h3 {[%emt 0:00:49]} Re3 {[%emt 0:01:58]} 27. Rxe3 {[%emt 0:02:19]} dxe3+ {[%emt 0:02:06]} 28. Ke2 {[%emt 0:07:13]} bxa5 {[%emt 0:02:41]} 29. Be5 {[%emt 0:01:59]} g5 {[%emt 0:04:00]} 30. Rxa5 {[%emt 0:03:14]} Be4 {[%emt 0:05:42]} 31. Rxc5 {[%emt 0:04:49]} f3+ {[%emt 0:03:59]} 32. Kxe3 {[%emt 0:00:06]} Bxd3 {[%emt 0:00:02]} 33. Bxf6 {[%emt 0:05:37]} Rxf6 {[%emt 0:00:53]} 34. Rxg5+ {[%emt 0:00:02]} Kf7 {[%emt 0:02:30]} 35. Kf2 {[%emt 0:00:01]} Be4 {[%emt 0:01:43]} 36. Ra5 {[%emt 0:01:52]} Rd6 {[%emt 0:00:34]} 37. Ke3 {[%emt 0:00:07]} Bc6 {[%emt 0:00:33]} 38. Ra7+ {[%emt 0:00:46]} Kg6 {[%emt 0:00:38]} 39. b4 {[%emt 0:00:50]} Re6+ {[%emt 0:00:09]} 40. Kf2 {[%emt 0:00:00]} Re2+ {[%emt 0:00:00]} 41. Kf1 {[%emt 0:00:07]} Be4 {[%emt 0:06:27]} 42. Rd7 {[%emt 0:01:25]} Kg5 {[%emt 0:03:22]} 43. b5 {[%emt 0:03:59]} Kf4 {[%emt 0:00:37]} 44. b6 {[%emt 0:00:36]} Ke3 {[%emt 0:05:40]} 45. Re7 {[%emt 0:00:51]} Rb2 {[%emt 0:00:41]} 0-1